Workbook

Sheet Table 5-5
A2: AASHTO Audit Guide - Chapter 5 - Sample Overhead Schedule (Corporate-Wide/Blended Rate)
A6: SAMPLE CONSULTING COMPANY, Inc.
A7: Statement of Direct Labor, Fringe Benefits, and General Overhead
A8: For the Year Ended December 31, 201x
J9: Proposed | L9: % of
D10: General Ledger | F10: Direct | H10: Disallowed | J10: Company | L10: Direct
A11: Account Number & Description | D11: Account Balance | F11: Costs | H11: Costs | J11: Wide | L11: Labor
A13: DIRECT LABOR | D13: 1950501 | F13: =D13 -> 1950501 | H13: 0 | J13: =F13+H13 -> 1950501 | L13: =J13/J13 -> 1
A15: INDIRECT COSTS:
A16: FRINGE BENEFITS
B17: 6300 Benefits: Bonuses | D17: 234060.12 | F17: 0 | H17: -28560 | I17: (a) | J17: =D17+F17+H17 -> 205500.12 | L17: =J17/$J$13 -> 0.1053576081
B18: 6310 Benefits: 401(k) | D18: 97525.05 | F18: 0 | H18: 0 | J18: =D18+F18+H18 -> 97525.05 | L18: =J18/$J$13 -> 0.05
B19: 6320 Benefits: PTO (vac., sick, and holiday) | D19: 253565.13 | F19: 0 | H19: 0 | J19: =D19+F19+H19 -> 253565.13 | L19: 0.13
B20: 6820 Insurance: Disability | D20: 58515.03 | F20: 0 | H20: 0 | J20: 58515.03 | L20: 0.03
B21: 6830 Insurance: Life | D21: 21845.6112 | F21: 0 | H21: -800 | I21: (b) | J21: 21045.6112 | L21: 0.01078984897
B22: 6840 Insurance: Medical | D22: 136535.07 | F22: 0 | H22: 0 | J22: 136535.07 | L22: 0.07
B23: 6850 Insurance: Workers' Comp | D23: 15799.0581 | F23: 0 | H23: 0 | J23: 15799.0581 | L23: 0.0081
B24: 7500 Payroll Taxes: FICA and Med | D24: 180421.3425 | F24: 0 | H24: 0 | J24: 180421.3425 | L24: 0.0925
B25: 7510 Payroll Taxes: FUTA and SUTA | D25: 78020.04 | F25: 0 | H25: 0 | J25: 78020.04 | L25: 0.04
A26: TOTAL FRINGE BENEFITS | D26: =SUM(D17:D25) -> 1076286.452 | F26: =SUM(F16:F25) -> 0 | H26: =SUM(H16:H25) -> -29360 | J26: =SUM(J16:J25) -> 1046926.452 | L26: 0.5367474571
A28: GENERAL OVERHEAD
B29: 6700 Indirect Labor | D29: 741190.38 | F29: 0 | H29: -3300 | I29: (c) | J29: =D29+F29+H29 -> 737890.38 | L29: =J29/$J$13 -> 0.378308127
B30: 5010 Direct: Lodging, Meals, and Travel | D30: 122101.3626 | F30: =-D30 -> -122101.3626 | H30: 0 | I30: (d) | J30: =D30+F30+H30 -> 0 | L30: 0
B31: 5020 Direct: Employee Mileage Reimbursements | D31: 159941.082 | F31: =-D31 -> -159941.082 | H31: 0 | I31: (d) | J31: =D31+F31+H31 -> 0 | L31: 0
B32: 5030 Direct: Rentals and Supplies | D32: 21650.5611 | F32: =-D32 -> -21650.5611 | H32: 0 | I32: (d) | J32: =D32+F32+H32 -> 0 | L32: 0
B33: 5040 Direct: Subconsultants | D33: 44861.523 | F33: =-D33 -> -44861.523 | H33: 0 | I33: (d) | J33: 0 | L33: 0
B34: 6000 Advertising and Marketing | D34: 23991.1623 | F34: 0 | H34: -6750 | I34: (e) | J34: 17241.1623 | L34: 0.008839350659
B35: 6100 Automobile Expense | D35: 68267.535 | F35: 0 | H35: -13580 | I35: (f) | J35: =D35+F35+H35 -> 54687.535 | L35: 0.02803768621
B36: 6200 Bank Service Charges | D36: 9752.505 | F36: 0 | H36: 0 | J36: 9752.505 | L36: 0.005
B37: 6400 Contributions and Gifts | D37: 14628.7575 | F37: 0 | H37: =-D37 -> -14628.7575 | I37: (g) | J37: 0 | L37: 0
B38: 6500 Depreciation Expense | D38: 117030.06 | F38: 0 | H38: 0 | J38: 117030.06 | L38: 0.06
B39: 6600 Dues and Subscriptions | D39: 16189.1583 | F39: 0 | H39: -350 | I39: (h) | J39: 15839.1583 | L39: 0.008120558923
B40: 6800 Insurance: Automotive | D40: 15408.9579 | F40: 0 | H40: 0 | J40: 15408.9579 | L40: 0.0079
B41: 6810 Insurance: Business Liability | D41: 23406.012 | F41: 0 | H41: 0 | J41: 23406.012 | L41: 0.012
B42: 6900 Interest Expense | D42: 36084.2685 | F42: 0 | H42: =-D42 -> -36084.2685 | I42: (i) | J42: 0 | L42: 0
B43: 7000 Licenses and Permits | D43: 21455.511 | F43: 0 | H43: 0 | J43: 21455.511 | L43: 0.011
B44: 7100 Maintenance and Repairs | D44: 97134.9498 | F44: 0 | H44: 0 | J44: 97134.9498 | L44: 0.0498
B45: 7200 Meals & Entertainment | D45: 19309.9599 | F45: 0 | H45: -1050 | I45: (j) | J45: 18259.9599 | L45: 0.009361676769
B46: 7300 Misc. Fees, Fines, Penalties | D46: 6826.7535 | F46: 0 | H46: =-D46 -> -6826.7535 | I46: (k) | J46: 0 | L46: 0
B47: 7400 Office Expense: Cleaning | D47: 8192.1042 | F47: 0 | H47: 0 | J47: 8192.1042 | L47: 0.0042
B48: 7410 Office Expense: Postage and Delivery | D48: 4486.1523 | F48: 0 | H48: 0 | J48: 4486.1523 | L48: 0.0023
B49: 7420 Office Expense: Office Supplies | D49: 32183.2665 | F49: 0 | H49: 0 | J49: 32183.2665 | L49: 0.0165
B50: 7430 Office Expense: Other Office Expense | D50: 35889.2184 | F50: 0 | H50: 0 | J50: 35889.2184 | L50: 0.0184
B51: 7600 Personal Property Tax | D51: 42911.022 | F51: 0 | H51: 0 | J51: 42911.022 | L51: 0.022
B52: 7700 Prof Fees: Accounting and Legal | D52: 30427.8156 | F52: 0 | H52: 0 | J52: 30427.8156 | L52: 0.0156
B53: 7800 Rent | D53: 180048.7968 | F53: 0 | H53: -2400 | I53: (l) | J53: 177648.7968 | L53: 0.0910785469
B54: 7900 Telephone | D54: 60465.531 | F54: 0 | H54: 0 | J54: 60465.531 | L54: 0.031
B55: 8000 Utilities | D55: 29472.07011 | F55: 0 | H55: 0 | J55: 29472.07011 | L55: 0.01511
B56: Credit for Internal Allocations | D56: 0 | F56: =-D56 -> 0 | H56: -107277.555 | I56: (m) | J56: -107277.555 | L56: -0.055
A57: TOTAL GENERAL OVERHEAD | D57: =SUM(D28:D56) -> 1983306.476 | F57: =SUM(F28:F56) -> -348554.5287 | H57: =SUM(H28:H56) -> -192247.3345 | J57: =SUM(J28:J56) -> 1442504.613 | L57: =J57/F13 -> 0.7395559465
A59: TOTAL INDIRECT COSTS & OVERHEAD RATE | D59: =D57+D26 -> 3059592.928 | F59: =F57+F26 -> -348554.5287 | H59: =H57+H26 -> -221607.3345 | J59: =J57+J26 -> 2489431.065 | L59: =J59/F13 -> 1.276303404
A62: FAR References and Notes:
A63: (a) | B63: 31.205-6(a)(6)(ii)(B): Owners' compensation in excess of reasonable amount is disallowed (distribution of profits).
A64: (b) | B64: 31.205-19(e)(2)(v): Officers' life insurance is disallowed.
A65: (c) | B65: 31.201-6(e)(2): Marketing, lobbying, and any labor associated with unallowable activities is disallowed.
A66: (d) | B66: 31.202: Excluded direct project costs (both billable & non-billable costs) from indirect cost pool.
A67: (e) | B67: 31.205-1: Costs for general marketing materials are disallowed.
A68: (f) | B68: 31.205-6(m)(2) & 31.205-46(d): Personal use of a company asset (automobile) is disallowed.
A69: (g) | B69: 31.205-8 & 31.205-13(b): Contributions and gifts are disallowed.
A70: (h) | B70: 31.205-22: Lobbying costs, paid as a percentage of professional dues, are disallowed.
A71: (i) | B71: 31.205-20: Interest is disallowed.
A72: (j) | B72: 31.205-14 & 31.205-51: Costs for entertainment and alcoholic beverages are disallowed. (The entertainment cost principle supersedes all others.)
A73: (k) | B73: 31.201-4, 31.205-15, & 31.205-20: Disallowed late fees; Government-imposed fines and penalties; and credit card interest.
A74: (l) | B74: 31.205-36(b)(3): Related-party rent (not an arm's-length transaction) is limited to actual cost of ownership, net of interest and other unallowable items.
A75: (m) | B75: 31.202: Direct costs segregated and removed from indirect cost pool.
